[Event "Titled Tuesday Blitz March 29 Late 2022"]
[White "Chabris, Christopher"]
[Black "Nasuta, Grzegorz"]
[WhiteFideId "2005263"]
[BlackFideId "1141686"]
[WhiteElo "2308"]
[BlackElo "2396"]
[Result "0-1"]
[Round "01"]
[TimeControl "180+1"]
[Date "2022.03.30"]
[WhiteClock "0:00:13"]
[BlackClock "0:00:24"]

1. e4 {[%clk 0:02:58]}  c5 {[%clk 0:02:59]} 2. Nf3 {[%clk 0:02:58]}  e6 {[%clk 0:02:49]} 3. d4 {[%clk 0:02:58]}  cxd4 {[%clk 0:02:49]} 4. Nxd4 {[%clk 0:02:58]}  a6 {[%clk 0:02:46]} 5. c4 {[%clk 0:02:58]}  Qc7 {[%clk 0:02:41]} 6. Nc3 {[%clk 0:02:57]}  Nf6 {[%clk 0:02:40]} 7. Be2 {[%clk 0:02:54]}  Bb4 {[%clk 0:02:39]} 8. Nc2 {[%clk 0:02:48]}  Bxc3+ {[%clk 0:02:32]} 9. bxc3 {[%clk 0:02:48]}  Nxe4 {[%clk 0:02:33]} 10. Qd4 {[%clk 0:02:48]}  Nf6 {[%clk 0:02:32]} 11. Bf4 {[%clk 0:02:44]}  Qa5 {[%clk 0:02:19]} 12. Bd6 {[%clk 0:02:08]}  Nc6 {[%clk 0:02:18]} 13. Qd3 {[%clk 0:01:58]}  b5 {[%clk 0:01:57]} 14. O-O {[%clk 0:01:27]}  bxc4 {[%clk 0:01:55]} 15. Qg3 {[%clk 0:01:17]}  Qf5 {[%clk 0:01:49]} 16. Ne3 {[%clk 0:01:00]}  Qg6 {[%clk 0:01:48]} 17. Nxc4 {[%clk 0:00:54]}  Qxg3 {[%clk 0:01:45]} 18. hxg3 {[%clk 0:00:42]}  Ne4 {[%clk 0:01:30]} 19. Nb6 {[%clk 0:00:24]}  Nxd6 {[%clk 0:01:28]} 20. Nxa8 {[%clk 0:00:23]}  Ke7 {[%clk 0:01:21]} 21. Nb6 {[%clk 0:00:20]}  Bb7 {[%clk 0:01:21]} 22. Rab1 {[%clk 0:00:20]}  Na5 {[%clk 0:00:57]} 23. Rfd1 {[%clk 0:00:19]}  Rd8 {[%clk 0:00:44]} 24. c4 {[%clk 0:00:19]}  Ne4 {[%clk 0:00:43]} 25. Bf3 {[%clk 0:00:16]}  Nc3 {[%clk 0:00:40]} 26. Bxb7 {[%clk 0:00:16]}  Nxb7 {[%clk 0:00:36]} 27. Rdc1 {[%clk 0:00:16]}  Nxb1 {[%clk 0:00:36]} 28. Rxb1 {[%clk 0:00:16]}  Nc5 {[%clk 0:00:36]} 29. Kf1 {[%clk 0:00:15]}  Rb8 {[%clk 0:00:35]} 30. Rb2 {[%clk 0:00:13]}  Kd6 {[%clk 0:00:25]} 31. Ke2 {[%clk 0:00:13]}  Kc7 {[%clk 0:00:24]} 0-1


[Site "https://www.chess.com"]

[Event "Titled Tuesday Blitz March 29 Late 2022"]
[White "Chyngyz, Sultai"]
[Black "Chiu, Isaac"]
[WhiteFideId "13803158"]
[BlackFideId "30900654"]
[WhiteElo "1365"]
[BlackElo "2117"]
[Result "0-1"]
[Round "01"]
[TimeControl "180+1"]
[Date "2022.03.30"]
[WhiteClock "0:00:22"]
[BlackClock "0:00:18"]

1. e4 {[%clk 0:02:56]}  e6 {[%clk 0:02:55]} 2. d4 {[%clk 0:02:55]}  d5 {[%clk 0:02:42]} 3. e5 {[%clk 0:02:55]}  c5 {[%clk 0:02:21]} 4. c3 {[%clk 0:02:53]}  Qb6 {[%clk 0:02:20]} 5. Nf3 {[%clk 0:02:37]}  Bd7 {[%clk 0:02:19]} 6. Be2 {[%clk 0:02:35]}  Bb5 {[%clk 0:02:19]} 7. O-O {[%clk 0:02:34]}  Bxe2 {[%clk 0:02:19]} 8. Qxe2 {[%clk 0:02:32]}  Nc6 {[%clk 0:02:19]} 9. Be3 {[%clk 0:02:30]}  Nh6 {[%clk 0:02:07]} 10. Bxh6 {[%clk 0:02:28]}  gxh6 {[%clk 0:02:08]} 11. a3 {[%clk 0:02:19]}  cxd4 {[%clk 0:02:05]} 12. cxd4 {[%clk 0:02:18]}  a6 {[%clk 0:01:59]} 13. Rd1 {[%clk 0:02:15]}  Na5 {[%clk 0:01:57]} 14. b4 {[%clk 0:02:12]}  Nc4 {[%clk 0:01:56]} 15. Nbd2 {[%clk 0:02:12]}  Rc8 {[%clk 0:01:54]} 16. Nxc4 {[%clk 0:02:11]}  Rxc4 {[%clk 0:01:55]} 17. Rac1 {[%clk 0:02:10]}  Qc6 {[%clk 0:01:52]} 18. Rxc4 {[%clk 0:02:09]}  Qxc4 {[%clk 0:01:53]} 19. Qxc4 {[%clk 0:02:08]}  dxc4 {[%clk 0:01:54]} 20. d5 {[%clk 0:02:01]}  exd5 {[%clk 0:01:49]} 21. Rxd5 {[%clk 0:02:01]}  b5 {[%clk 0:01:50]} 22. Nd4 {[%clk 0:01:53]}  Be7 {[%clk 0:01:28]} 23. Nc6 {[%clk 0:01:51]}  Rg8 {[%clk 0:01:11]} 24. g3 {[%clk 0:01:47]}  Rg6 {[%clk 0:01:09]} 25. Nd4 {[%clk 0:01:34]}  c3 {[%clk 0:00:34]} 26. Nc2 {[%clk 0:01:22]}  Rc6 {[%clk 0:00:32]} 27. Rd3 {[%clk 0:01:20]}  f6 {[%clk 0:00:30]} 28. e6 {[%clk 0:01:14]}  Bd6 {[%clk 0:00:21]} 29. Nd4 {[%clk 0:01:01]}  Rc4 {[%clk 0:00:19]} 30. Nc2 {[%clk 0:00:59]}  Ke7 {[%clk 0:00:17]} 31. Re3 {[%clk 0:00:55]}  f5 {[%clk 0:00:16]} 32. f4 {[%clk 0:00:53]}  Bc7 {[%clk 0:00:15]} 33. Kf1 {[%clk 0:00:51]}  a5 {[%clk 0:00:15]} 34. Ke2 {[%clk 0:00:50]}  axb4 {[%clk 0:00:14]} 35. axb4 {[%clk 0:00:45]}  Bd6 {[%clk 0:00:14]} 36. Kd3 {[%clk 0:00:35]}  Bxb4 {[%clk 0:00:14]} 37. Nxb4 {[%clk 0:00:34]}  Rxb4 {[%clk 0:00:15]} 38. Kxc3 {[%clk 0:00:34]}  Re4 {[%clk 0:00:14]} 39. Rxe4 {[%clk 0:00:27]}  fxe4 {[%clk 0:00:15]} 40. Kd4 {[%clk 0:00:28]}  Kxe6 {[%clk 0:00:10]} 41. Kxe4 {[%clk 0:00:28]}  h5 {[%clk 0:00:10]} 42. h4 {[%clk 0:00:24]}  Kd6 {[%clk 0:00:08]} 43. Kd4 {[%clk 0:00:24]}  h6 {[%clk 0:00:07]} 44. f5 {[%clk 0:00:24]}  Ke7 {[%clk 0:00:04]} 45. Ke5 {[%clk 0:00:20]}  b4 {[%clk 0:00:04]} 46. g4 {[%clk 0:00:08]}  hxg4 {[%clk 0:00:03]} 47. f6+ {[%clk 0:00:08]}  Kf7 {[%clk 0:00:03]} 48. h5 {[%clk 0:00:09]}  g3 {[%clk 0:00:03]} 49. Kf4 {[%clk 0:00:10]}  g2 {[%clk 0:00:04]} 50. Ke4 {[%clk 0:00:11]}  g1=Q {[%clk 0:00:05]} 51. Kd5 {[%clk 0:00:11]}  Qg5+ {[%clk 0:00:05]} 52. Kc4 {[%clk 0:00:12]}  Qxh5 {[%clk 0:00:06]} 53. Kxb4 {[%clk 0:00:12]}  Qg5 {[%clk 0:00:07]} 54. Kc4 {[%clk 0:00:13]}  Qxf6 {[%clk 0:00:08]} 55. Kd3 {[%clk 0:00:14]}  Kg6 {[%clk 0:00:08]} 56. Kd2 {[%clk 0:00:15]}  Kg5 {[%clk 0:00:09]} 57. Kc2 {[%clk 0:00:15]}  h5 {[%clk 0:00:10]} 58. Kb3 {[%clk 0:00:16]}  h4 {[%clk 0:00:11]} 59. Kc2 {[%clk 0:00:17]}  h3 {[%clk 0:00:12]} 60. Kb3 {[%clk 0:00:18]}  h2 {[%clk 0:00:13]} 61. Kc4 {[%clk 0:00:19]}  h1=Q {[%clk 0:00:14]} 62. Kb3 {[%clk 0:00:20]}  Qh4 {[%clk 0:00:15]} 63. Ka2 {[%clk 0:00:19]}  Qg4 {[%clk 0:00:16]} 64. Kb1 {[%clk 0:00:20]}  Qff4 {[%clk 0:00:17]} 65. Kc2 {[%clk 0:00:21]}  Qff3 {[%clk 0:00:17]} 66. Kd2 {[%clk 0:00:21]}  Qgg2+ {[%clk 0:00:18]} 67. Ke1 {[%clk 0:00:22]}  Qff1# {[%clk 0:00:18]} 0-1


[Site "https://www.chess.com"]

[Event "Titled Tuesday Blitz March 29 Late 2022"]
[White "Demchenko, Anton"]
[Black "Pourkashiyan, Atousa"]
[WhiteFideId "4160258"]
[BlackFideId "12502014"]
[WhiteElo "2539"]
[BlackElo "2247"]
[Result "1-0"]
[Round "01"]
[TimeControl "180+1"]
[Date "2022.03.29"]
[WhiteClock "0:00:07"]
[BlackClock "0:00:38"]

1. e4 {[%clk 0:03:00]}  e5 {[%clk 0:02:59]} 2. Nf3 {[%clk 0:03:00]}  Nf6 {[%clk 0:02:59]} 3. Nxe5 {[%clk 0:03:00]}  d6 {[%clk 0:02:59]} 4. Nf3 {[%clk 0:03:00]}  Nxe4 {[%clk 0:02:59]} 5. Qe2 {[%clk 0:03:01]}  Qe7 {[%clk 0:02:58]} 6. d3 {[%clk 0:03:01]}  Nf6 {[%clk 0:02:59]} 7. Bg5 {[%clk 0:03:02]}  Qxe2+ {[%clk 0:02:55]} 8. Bxe2 {[%clk 0:03:03]}  Be7 {[%clk 0:02:55]} 9. Nc3 {[%clk 0:03:03]}  c6 {[%clk 0:02:55]} 10. O-O-O {[%clk 0:03:02]}  Na6 {[%clk 0:02:54]} 11. h3 {[%clk 0:02:57]}  Nc7 {[%clk 0:02:54]} 12. Bd2 {[%clk 0:02:55]}  Ne6 {[%clk 0:02:52]} 13. g4 {[%clk 0:02:53]}  h6 {[%clk 0:02:49]} 14. Rdg1 {[%clk 0:02:53]}  Bd7 {[%clk 0:02:44]} 15. h4 {[%clk 0:02:53]}  O-O-O {[%clk 0:02:43]} 16. Bd1 {[%clk 0:02:40]}  h5 {[%clk 0:02:32]} 17. g5 {[%clk 0:02:35]}  Ng4 {[%clk 0:02:32]} 18. Rg2 {[%clk 0:02:29]}  d5 {[%clk 0:02:20]} 19. Ng1 {[%clk 0:01:53]}  Nd4 {[%clk 0:02:12]} 20. f3 {[%clk 0:01:46]}  Ne5 {[%clk 0:02:07]} 21. Nce2 {[%clk 0:01:39]}  Nexf3 {[%clk 0:01:55]} 22. Nxf3 {[%clk 0:01:39]}  Nxf3 {[%clk 0:01:55]} 23. Bf4 {[%clk 0:01:40]}  Bc5 {[%clk 0:01:48]} 24. c3 {[%clk 0:01:36]}  Rde8 {[%clk 0:01:34]} 25. d4 {[%clk 0:01:34]}  Bb6 {[%clk 0:01:35]} 26. Rg3 {[%clk 0:01:33]}  Bg4 {[%clk 0:01:28]} 27. Rg2 {[%clk 0:00:50]}  Bc7 {[%clk 0:01:15]} 28. Bxc7 {[%clk 0:00:46]}  Kxc7 {[%clk 0:01:16]} 29. Rf2 {[%clk 0:00:42]}  Re7 {[%clk 0:01:15]} 30. Nf4 {[%clk 0:00:34]}  Ne1 {[%clk 0:01:09]} 31. Kd2 {[%clk 0:00:28]}  Rhe8 {[%clk 0:01:09]} 32. Nxh5 {[%clk 0:00:25]}  Bxd1 {[%clk 0:01:06]} 33. Kxd1 {[%clk 0:00:24]}  Nd3 {[%clk 0:01:06]} 34. Rd2 {[%clk 0:00:20]}  Re1+ {[%clk 0:00:58]} 35. Rxe1 {[%clk 0:00:20]}  Nxe1 {[%clk 0:00:59]} 36. Nxg7 {[%clk 0:00:19]}  Re4 {[%clk 0:00:59]} 37. Re2 {[%clk 0:00:15]}  Nf3 {[%clk 0:00:58]} 38. Rxe4 {[%clk 0:00:13]}  dxe4 {[%clk 0:00:59]} 39. Nf5 {[%clk 0:00:14]}  Kd7 {[%clk 0:00:59]} 40. Ke2 {[%clk 0:00:08]}  Ke6 {[%clk 0:00:59]} 41. Ng3 {[%clk 0:00:09]}  Kd5 {[%clk 0:00:53]} 42. h5 {[%clk 0:00:08]}  Nxg5 {[%clk 0:00:53]} 43. h6 {[%clk 0:00:08]}  Ke6 {[%clk 0:00:51]} 44. Ke3 {[%clk 0:00:08]}  f5 {[%clk 0:00:50]} 45. Nh5 {[%clk 0:00:04]}  Nh7 {[%clk 0:00:48]} 46. Ng7+ {[%clk 0:00:02]}  Kf6 {[%clk 0:00:47]} 47. Kf4 {[%clk 0:00:02]}  Kg6 {[%clk 0:00:47]} 48. Nxf5 {[%clk 0:00:02]}  Nf6 {[%clk 0:00:46]} 49. Ne3 {[%clk 0:00:01]}  Kxh6 {[%clk 0:00:45]} 50. Ng4+ {[%clk 0:00:02]}  Nxg4 {[%clk 0:00:43]} 51. Kxg4 {[%clk 0:00:02]}  Kg6 {[%clk 0:00:43]} 52. Kf4 {[%clk 0:00:03]}  Kf6 {[%clk 0:00:44]} 53. Kxe4 {[%clk 0:00:03]}  Ke6 {[%clk 0:00:44]} 54. c4 {[%clk 0:00:04]}  Kd6 {[%clk 0:00:45]} 55. d5 {[%clk 0:00:05]}  cxd5+ {[%clk 0:00:45]} 56. cxd5 {[%clk 0:00:05]}  a5 {[%clk 0:00:39]} 57. a4 {[%clk 0:00:05]}  b6 {[%clk 0:00:39]} 58. Kd4 {[%clk 0:00:05]}  Kd7 {[%clk 0:00:37]} 59. Ke5 {[%clk 0:00:06]}  Ke7 {[%clk 0:00:38]} 60. d6+ {[%clk 0:00:06]}  Kd7 {[%clk 0:00:38]} 61. Kd5 {[%clk 0:00:07]} 1-0


[Site "https://www.chess.com"]

[Event "Titled Tuesday Blitz March 29 Late 2022"]
[White "Dubov, Daniil"]
[Black "Janaszak, Dawid"]
[WhiteFideId "24126055"]
[BlackFideId "1119206"]
[WhiteElo "2791"]
[BlackElo "2199"]
[Result "1-0"]
[Round "01"]
[TimeControl "180+1"]
[Date "2022.03.29"]
[WhiteClock "0:00:16"]
[BlackClock "0:00:02"]

1. d4 {[%clk 0:02:57]}  Nf6 {[%clk 0:02:59]} 2. Nf3 {[%clk 0:02:54]}  g6 {[%clk 0:02:59]} 3. c4 {[%clk 0:02:51]}  Bg7 {[%clk 0:02:59]} 4. Nc3 {[%clk 0:02:52]}  O-O {[%clk 0:02:59]} 5. Bg5 {[%clk 0:02:52]}  c5 {[%clk 0:02:50]} 6. d5 {[%clk 0:02:51]}  h6 {[%clk 0:02:47]} 7. Bd2 {[%clk 0:02:49]}  e6 {[%clk 0:02:36]} 8. e4 {[%clk 0:02:47]}  exd5 {[%clk 0:02:36]} 9. exd5 {[%clk 0:02:47]}  Re8+ {[%clk 0:02:31]} 10. Be2 {[%clk 0:02:47]}  d6 {[%clk 0:02:30]} 11. O-O {[%clk 0:02:48]}  Na6 {[%clk 0:02:18]} 12. Bd3 {[%clk 0:02:42]}  Nc7 {[%clk 0:02:10]} 13. a4 {[%clk 0:02:30]}  Bg4 {[%clk 0:01:59]} 14. h3 {[%clk 0:02:27]}  Bxf3 {[%clk 0:01:59]} 15. Qxf3 {[%clk 0:02:28]}  Nd7 {[%clk 0:02:00]} 16. Qd1 {[%clk 0:02:28]}  Ne5 {[%clk 0:01:58]} 17. Be2 {[%clk 0:02:27]}  f5 {[%clk 0:01:55]} 18. Re1 {[%clk 0:02:22]}  Qh4 {[%clk 0:01:50]} 19. b3 {[%clk 0:02:15]}  Nf7 {[%clk 0:01:32]} 20. Bf1 {[%clk 0:02:04]}  Bd4 {[%clk 0:01:20]} 21. Rxe8+ {[%clk 0:01:51]}  Rxe8 {[%clk 0:01:17]} 22. Be1 {[%clk 0:01:52]}  f4 {[%clk 0:00:47]} 23. Ra2 {[%clk 0:01:19]}  Ng5 {[%clk 0:00:43]} 24. Re2 {[%clk 0:01:15]}  f3 {[%clk 0:00:37]} 25. Rxe8+ {[%clk 0:01:12]}  Nxe8 {[%clk 0:00:37]} 26. Qd3 {[%clk 0:01:01]}  Kh7 {[%clk 0:00:24]} 27. Nb5 {[%clk 0:00:54]}  Nf6 {[%clk 0:00:13]} 28. Nxd4 {[%clk 0:00:51]}  cxd4 {[%clk 0:00:13]} 29. Bd2 {[%clk 0:00:42]}  fxg2 {[%clk 0:00:08]} 30. Bxg2 {[%clk 0:00:41]}  Nf7 {[%clk 0:00:06]} 31. Qg3 {[%clk 0:00:36]}  Qxg3 {[%clk 0:00:05]} 32. fxg3 {[%clk 0:00:36]}  Ne5 {[%clk 0:00:06]} 33. Kf2 {[%clk 0:00:33]}  Nd3+ {[%clk 0:00:06]} 34. Ke2 {[%clk 0:00:32]}  Nc5 {[%clk 0:00:07]} 35. Bf4 {[%clk 0:00:29]}  Nxb3 {[%clk 0:00:06]} 36. Bxd6 {[%clk 0:00:27]}  b6 {[%clk 0:00:05]} 37. Kd3 {[%clk 0:00:26]}  Nc5+ {[%clk 0:00:04]} 38. Kxd4 {[%clk 0:00:24]}  Nxa4 {[%clk 0:00:05]} 39. Be7 {[%clk 0:00:20]}  Nd7 {[%clk 0:00:05]} 40. d6 {[%clk 0:00:21]}  Nac5 {[%clk 0:00:05]} 41. Bc6 {[%clk 0:00:18]}  a5 {[%clk 0:00:06]} 42. Kd5 {[%clk 0:00:18]}  a4 {[%clk 0:00:05]} 43. Bxd7 {[%clk 0:00:17]}  Nxd7 {[%clk 0:00:04]} 44. Kc6 {[%clk 0:00:17]}  Ne5+ {[%clk 0:00:03]} 45. Kb5 {[%clk 0:00:17]}  a3 {[%clk 0:00:03]} 46. Bf6 {[%clk 0:00:17]}  Nd7 {[%clk 0:00:02]} 47. Bd4 {[%clk 0:00:17]}  g5 {[%clk 0:00:02]} 48. Kc6 {[%clk 0:00:17]}  Nc5 {[%clk 0:00:02]} 49. Kxb6 {[%clk 0:00:16]}  Nb3 {[%clk 0:00:02]} 50. Bc3 {[%clk 0:00:16]} 1-0


[Site "https://www.chess.com"]

[Event "Titled Tuesday Blitz March 29 Late 2022"]
[White "Dylag, Emilia"]
[Black "Guz, Ari"]
[WhiteFideId "21805172"]
[BlackFideId "2825759"]
[WhiteElo "1932"]
[BlackElo "1913"]
[Result "0-1"]
[Round "01"]
[TimeControl "180+1"]
[Date "2022.03.30"]
[WhiteClock "0:00:18"]
[BlackClock "0:01:07"]

1. d4 {[%clk 0:02:59]}  Nf6 {[%clk 0:02:55]} 2. c4 {[%clk 0:02:59]}  g6 {[%clk 0:02:56]} 3. Nf3 {[%clk 0:02:58]}  Bg7 {[%clk 0:02:56]} 4. g3 {[%clk 0:02:58]}  c5 {[%clk 0:02:56]} 5. d5 {[%clk 0:02:57]}  b5 {[%clk 0:02:56]} 6. cxb5 {[%clk 0:02:54]}  a6 {[%clk 0:02:56]} 7. bxa6 {[%clk 0:02:53]}  Bxa6 {[%clk 0:02:56]} 8. Bg2 {[%clk 0:02:53]}  d6 {[%clk 0:02:56]} 9. O-O {[%clk 0:02:54]}  O-O {[%clk 0:02:57]} 10. Nc3 {[%clk 0:02:54]}  Nbd7 {[%clk 0:02:56]} 11. a4 {[%clk 0:02:53]}  Qb6 {[%clk 0:02:54]} 12. Rb1 {[%clk 0:02:52]}  Rfb8 {[%clk 0:02:50]} 13. h3 {[%clk 0:02:41]}  Ne8 {[%clk 0:02:50]} 14. Bg5 {[%clk 0:02:22]}  Kf8 {[%clk 0:02:40]} 15. Nd2 {[%clk 0:02:16]}  Nc7 {[%clk 0:02:33]} 16. Qc2 {[%clk 0:02:14]}  Qb4 {[%clk 0:02:27]} 17. Rfc1 {[%clk 0:02:12]}  Ne5 {[%clk 0:02:23]} 18. f4 {[%clk 0:01:56]}  Nc4 {[%clk 0:02:04]} 19. Nxc4 {[%clk 0:01:55]}  Qxc4 {[%clk 0:02:04]} 20. f5 {[%clk 0:01:47]}  Be5 {[%clk 0:01:56]} 21. Bh6+ {[%clk 0:01:45]}  Kg8 {[%clk 0:01:56]} 22. fxg6 {[%clk 0:01:45]}  hxg6 {[%clk 0:01:56]} 23. Ne4 {[%clk 0:01:22]}  Qxc2 {[%clk 0:01:50]} 24. Rxc2 {[%clk 0:01:22]}  Rb4 {[%clk 0:01:51]} 25. Bd2 {[%clk 0:01:03]}  Rxa4 {[%clk 0:01:45]} 26. b3 {[%clk 0:01:03]}  Ra1 {[%clk 0:01:39]} 27. Rxa1 {[%clk 0:01:02]}  Bxa1 {[%clk 0:01:40]} 28. b4 {[%clk 0:00:57]}  Bd4+ {[%clk 0:01:26]} 29. e3 {[%clk 0:00:56]}  Bd3 {[%clk 0:01:22]} 30. Rc1 {[%clk 0:00:53]}  Bb2 {[%clk 0:01:22]} 31. Rd1 {[%clk 0:00:43]}  c4 {[%clk 0:01:22]} 32. Nf2 {[%clk 0:00:37]}  Bc2 {[%clk 0:01:19]} 33. Re1 {[%clk 0:00:36]}  c3 {[%clk 0:01:20]} 34. Bc1 {[%clk 0:00:36]}  Ra1 {[%clk 0:01:19]} 35. Re2 {[%clk 0:00:29]}  Rxc1+ {[%clk 0:01:14]} 36. Kh2 {[%clk 0:00:30]}  Bb3 {[%clk 0:01:11]} 37. Nd3 {[%clk 0:00:28]}  Rc2 {[%clk 0:01:12]} 38. Re1 {[%clk 0:00:24]}  Bxd5 {[%clk 0:01:12]} 39. Rg1 {[%clk 0:00:17]}  Rxg2+ {[%clk 0:01:07]} 40. Rxg2 {[%clk 0:00:18]}  Bxg2 {[%clk 0:01:07]} 41. Kxg2 {[%clk 0:00:18]}  c2 {[%clk 0:01:07]} 0-1


[Site "https://www.chess.com"]

[Event "Titled Tuesday Blitz March 29 Late 2022"]
[White "Ezat, Mohamed"]
[Black "Dahlgren, James Allen"]
[WhiteFideId "10600906"]
[BlackFideId "22256873"]
[WhiteElo "2386"]
[BlackElo "2144"]
[Result "1-0"]
[Round "01"]
[TimeControl "180+1"]
[Date "2022.03.30"]
[WhiteClock "0:01:11"]
[BlackClock "0:00:31"]

1. d4 {[%clk 0:03:00]}  e6 {[%clk 0:03:00]} 2. c4 {[%clk 0:02:59]}  c5 {[%clk 0:03:01]} 3. d5 {[%clk 0:02:58]}  Nf6 {[%clk 0:03:01]} 4. Nc3 {[%clk 0:02:57]}  g6 {[%clk 0:03:01]} 5. e4 {[%clk 0:02:57]}  d6 {[%clk 0:03:00]} 6. Nf3 {[%clk 0:02:53]}  Bg7 {[%clk 0:03:01]} 7. Be2 {[%clk 0:02:54]}  O-O {[%clk 0:03:01]} 8. Bg5 {[%clk 0:02:54]}  h6 {[%clk 0:02:59]} 9. Bf4 {[%clk 0:02:52]}  e5 {[%clk 0:02:58]} 10. Be3 {[%clk 0:02:50]}  Ng4 {[%clk 0:02:57]} 11. Bd2 {[%clk 0:02:49]}  f5 {[%clk 0:02:57]} 12. h3 {[%clk 0:02:48]}  Nf6 {[%clk 0:02:57]} 13. Nh4 {[%clk 0:02:48]}  Kh7 {[%clk 0:02:49]} 14. Qc2 {[%clk 0:02:43]}  f4 {[%clk 0:02:42]} 15. Nf3 {[%clk 0:02:34]}  g5 {[%clk 0:02:40]} 16. h4 {[%clk 0:02:32]}  g4 {[%clk 0:02:38]} 17. Ng5+ {[%clk 0:02:32]}  hxg5 {[%clk 0:02:21]} 18. hxg5+ {[%clk 0:02:31]}  Kg6 {[%clk 0:02:21]} 19. gxf6 {[%clk 0:02:31]}  Kxf6 {[%clk 0:02:18]} 20. O-O-O {[%clk 0:02:23]}  Na6 {[%clk 0:02:14]} 21. g3 {[%clk 0:02:18]}  f3 {[%clk 0:02:05]} 22. Bd3 {[%clk 0:02:02]}  Nb4 {[%clk 0:02:02]} 23. Qb1 {[%clk 0:02:02]}  Bd7 {[%clk 0:01:48]} 24. a3 {[%clk 0:01:50]}  Na6 {[%clk 0:01:41]} 25. Rh5 {[%clk 0:01:33]}  Rh8 {[%clk 0:01:22]} 26. Bg5+ {[%clk 0:01:29]}  Kg6 {[%clk 0:01:19]} 27. Bxd8 {[%clk 0:01:29]}  Rxh5 {[%clk 0:01:17]} 28. Be7 {[%clk 0:01:28]}  Rh2 {[%clk 0:00:45]} 29. Rf1 {[%clk 0:01:20]}  Bh6+ {[%clk 0:00:43]} 30. Kd1 {[%clk 0:01:16]}  Rh8 {[%clk 0:00:31]} 31. Bxd6 {[%clk 0:01:11]} 1-0


[Site "https://www.chess.com"]

[Event "Titled Tuesday Blitz March 29 Late 2022"]
[White "Fedoseev, Vladimir"]
[Black "Chernobay, Artem"]
[WhiteFideId "24130737"]
[BlackFideId "4167406"]
[WhiteElo "2726"]
[BlackElo "2473"]
[Result "1-0"]
[Round "01"]
[TimeControl "180+1"]
[Date "2022.03.29"]
[WhiteClock "0:00:09"]
[BlackClock "0:00:01"]

1. e4 {[%clk 0:02:55]}  c5 {[%clk 0:02:59]} 2. Nf3 {[%clk 0:02:52]}  d6 {[%clk 0:02:59]} 3. c3 {[%clk 0:02:52]}  Nf6 {[%clk 0:02:59]} 4. Bd3 {[%clk 0:02:52]}  g6 {[%clk 0:02:59]} 5. Bc2 {[%clk 0:02:53]}  Bg7 {[%clk 0:02:59]} 6. d4 {[%clk 0:02:53]}  O-O {[%clk 0:02:56]} 7. dxc5 {[%clk 0:02:50]}  dxc5 {[%clk 0:02:56]} 8. Qxd8 {[%clk 0:02:50]}  Rxd8 {[%clk 0:02:56]} 9. h3 {[%clk 0:02:49]}  b6 {[%clk 0:02:49]} 10. Bf4 {[%clk 0:02:48]}  Ba6 {[%clk 0:02:38]} 11. Nbd2 {[%clk 0:02:48]}  Nc6 {[%clk 0:02:36]} 12. O-O-O {[%clk 0:02:38]}  Nd7 {[%clk 0:02:34]} 13. Kb1 {[%clk 0:02:12]}  Nde5 {[%clk 0:02:30]} 14. Nxe5 {[%clk 0:02:12]}  Nxe5 {[%clk 0:02:29]} 15. Be3 {[%clk 0:02:12]}  Rd7 {[%clk 0:02:11]} 16. f4 {[%clk 0:02:09]}  Nd3 {[%clk 0:02:08]} 17. Ba4 {[%clk 0:02:02]}  b5 {[%clk 0:01:59]} 18. Bc2 {[%clk 0:02:00]}  b4 {[%clk 0:01:45]} 19. e5 {[%clk 0:02:00]}  bxc3 {[%clk 0:01:39]} 20. bxc3 {[%clk 0:02:00]}  Bh6 {[%clk 0:01:28]} 21. Nb3 {[%clk 0:01:44]}  Rb8 {[%clk 0:01:04]} 22. Bxd3 {[%clk 0:01:30]}  Bxd3+ {[%clk 0:00:45]} 23. Ka1 {[%clk 0:01:28]}  c4 {[%clk 0:00:41]} 24. Nc5 {[%clk 0:01:23]}  Rd5 {[%clk 0:00:40]} 25. g3 {[%clk 0:01:15]}  e6 {[%clk 0:00:33]} 26. Na6 {[%clk 0:01:05]}  Rbb5 {[%clk 0:00:25]} 27. Nc7 {[%clk 0:01:04]}  Bf8 {[%clk 0:00:21]} 28. Nxb5 {[%clk 0:00:58]}  Rxb5 {[%clk 0:00:22]} 29. Rd2 {[%clk 0:00:51]}  Ba3 {[%clk 0:00:19]} 30. Bxa7 {[%clk 0:00:51]}  Kf8 {[%clk 0:00:14]} 31. Rhd1 {[%clk 0:00:45]}  h6 {[%clk 0:00:12]} 32. Be3 {[%clk 0:00:41]}  h5 {[%clk 0:00:11]} 33. Rf2 {[%clk 0:00:28]}  Ke7 {[%clk 0:00:09]} 34. g4 {[%clk 0:00:24]}  hxg4 {[%clk 0:00:07]} 35. hxg4 {[%clk 0:00:24]}  Rb8 {[%clk 0:00:08]} 36. Rh2 {[%clk 0:00:22]}  Rb7 {[%clk 0:00:03]} 37. Bd4 {[%clk 0:00:14]}  Kd7 {[%clk 0:00:02]} 38. Be3 {[%clk 0:00:14]}  Kc6 {[%clk 0:00:02]} 39. Rhd2 {[%clk 0:00:12]}  Kd5 {[%clk 0:00:02]} 40. Rf2 {[%clk 0:00:11]}  Ke4 {[%clk 0:00:02]} 41. Bd4 {[%clk 0:00:12]}  Kd5 {[%clk 0:00:02]} 42. Re1 {[%clk 0:00:12]}  Kc6 {[%clk 0:00:02]} 43. Be3 {[%clk 0:00:12]}  Rb8 {[%clk 0:00:02]} 44. Rd2 {[%clk 0:00:12]}  Rh8 {[%clk 0:00:01]} 45. Rf2 {[%clk 0:00:09]}  Kd5 {[%clk 0:00:01]} 46. Bc1 {[%clk 0:00:09]}  Rh3 {[%clk 0:00:01]} 47. Bxa3 {[%clk 0:00:09]} 1-0


[Site "https://www.chess.com"]

[Event "Titled Tuesday Blitz March 29 Late 2022"]
[White "Fiol, Fabrice"]
[Black "Hambleton, Aman"]
[WhiteFideId "611670"]
[BlackFideId "2606577"]
[WhiteElo "2401"]
[BlackElo "2552"]
[Result "0-1"]
[Round "01"]
[TimeControl "180+1"]
[Date "2022.03.30"]
[WhiteClock "0:00:22"]
[BlackClock "0:00:07"]

1. e4 {[%clk 0:03:00]}  c5 {[%clk 0:02:58]} 2. Nf3 {[%clk 0:03:00]}  e6 {[%clk 0:02:57]} 3. d4 {[%clk 0:02:59]}  cxd4 {[%clk 0:02:58]} 4. Nxd4 {[%clk 0:02:59]}  Nc6 {[%clk 0:02:59]} 5. Nc3 {[%clk 0:02:58]}  Qc7 {[%clk 0:02:56]} 6. Be3 {[%clk 0:02:58]}  a6 {[%clk 0:02:55]} 7. Bd3 {[%clk 0:02:58]}  Na5 {[%clk 0:02:42]} 8. Qe2 {[%clk 0:02:44]}  b5 {[%clk 0:02:30]} 9. O-O {[%clk 0:02:39]}  Bb7 {[%clk 0:02:30]} 10. Rad1 {[%clk 0:02:11]}  Rc8 {[%clk 0:02:18]} 11. f4 {[%clk 0:01:29]}  Nc4 {[%clk 0:01:50]} 12. Bxc4 {[%clk 0:01:25]}  Qxc4 {[%clk 0:01:51]} 13. Qd3 {[%clk 0:01:25]}  Nf6 {[%clk 0:01:19]} 14. e5 {[%clk 0:01:12]}  Qxd3 {[%clk 0:00:59]} 15. Rxd3 {[%clk 0:01:03]}  Nd5 {[%clk 0:00:59]} 16. Ne4 {[%clk 0:00:47]}  Nb4 {[%clk 0:00:46]} 17. Nd6+ {[%clk 0:00:46]}  Bxd6 {[%clk 0:00:45]} 18. exd6 {[%clk 0:00:47]}  Nxd3 {[%clk 0:00:45]} 19. cxd3 {[%clk 0:00:48]}  Bd5 {[%clk 0:00:30]} 20. a3 {[%clk 0:00:48]}  f6 {[%clk 0:00:29]} 21. h3 {[%clk 0:00:47]}  h5 {[%clk 0:00:23]} 22. Re1 {[%clk 0:00:44]}  Kf7 {[%clk 0:00:23]} 23. Kf2 {[%clk 0:00:43]}  Rb8 {[%clk 0:00:16]} 24. b4 {[%clk 0:00:41]}  Rhc8 {[%clk 0:00:15]} 25. g4 {[%clk 0:00:39]}  hxg4 {[%clk 0:00:14]} 26. hxg4 {[%clk 0:00:40]}  Rc3 {[%clk 0:00:12]} 27. g5 {[%clk 0:00:37]}  Rh8 {[%clk 0:00:10]} 28. gxf6 {[%clk 0:00:36]}  gxf6 {[%clk 0:00:11]} 29. Rg1 {[%clk 0:00:34]}  Rh2+ {[%clk 0:00:11]} 30. Kg3 {[%clk 0:00:34]}  Rh5 {[%clk 0:00:08]} 31. Kg4 {[%clk 0:00:24]}  Rh8 {[%clk 0:00:07]} 32. f5 {[%clk 0:00:21]}  Rg8+ {[%clk 0:00:07]} 33. Kf4 {[%clk 0:00:22]}  e5# {[%clk 0:00:07]} 0-1


[Site "https://www.chess.com"]